[Event "FIDE Rating Open 2024"]
[Site "Dhaka"]
[Date "2024.01.21"]
[Round "7.5"]
[White "Abu Sufian, Shakil"]
[Black "Ahmed, Shafiq"]
[Result "1-0"]
[ECO "C11"]
[WhiteElo "2199"]
[BlackElo "2082"]
[Annotator "RC"]
[PlyCount "143"]
[EventDate "2024.01.16"]
[EventType "swiss"]
[EventCountry "BAN"]
[SourceTitle "playchess.com"]
[Source "ChessBase"]
[SourceQuality "1"]
[TimeControl "5400+30"]

1. e4 {[%emt 0:00:03]} e6 {[%emt 0:01:00]} 2. d4 {[%emt 0:00:05]} d5 {[%emt 0:00:05]} 3. Nc3 {[%emt 0:00:02]} Nf6 {[%emt 0:00:31]} 4. e5 {[%emt 0:00:03]} Nfd7 {[%emt 0:00:23]} 5. f4 {[%emt 0:00:04]} c5 {[%emt 0:00:14]} 6. Nf3 {[%emt 0:00:04]} Nc6 {[%emt 0:00:25]} 7. Be3 {[%emt 0:00:07]} Qb6 {[%emt 0:03:02]} 8. Na4 {[%emt 0:00:34]} Qa5+ {[%emt 0:00:29]} 9. c3 {[%emt 0:00:02]} c4 {[%emt 0:00:49]} 10. b4 {[%emt 0:00:17]} Qc7 {[%emt 0:01:00]} 11. Be2 {[%emt 0:00:28]} Ne7 {[%emt 0:00:50]} 12. O-O {[%emt 0:01:58]} b6 {[%emt 0:03:35]} 13. Nb2 {[%emt 0:00:47]} a6 {[%emt 0:00:55]} 14. a4 {[%emt 0:01:11]} Nf5 {[%emt 0:01:01]} 15. Bf2 {[%emt 0:00:28]} Be7 {[%emt 0:14:14]} 16. Qe1 {[%emt 0:08:05]} Nf8 {[%emt 0:00:45]} 17. Bd1 {[%emt 0:04:53]} Ng6 {[%emt 0:02:46]} 18. g3 {[%emt 0:00:42]} Bd7 {[%emt 0:00:48]} 19. Bc2 {[%emt 0:00:27]} Nh6 {[%emt 0:01:34]} 20. h3 {[%emt 0:07:26]} O-O-O {[%emt 0:00:55]} 21. a5 {[%emt 0:02:13]} b5 {[%emt 0:00:21]} 22. Nd1 {[%emt 0:00:35]} f5 {[%emt 0:02:09]} 23. Be3 {[%emt 0:01:27]} Rdg8 {[%emt 0:02:36]} 24. Ra2 {[%emt 0:00:45]} Nf8 {[%emt 0:00:52]} 25. Bb1 {[%emt 0:17:24]} Be8 {[%emt 0:00:51]} 26. Rg2 {[%emt 0:02:01]} Bh5 {[%emt 0:07:11]} 27. Nh2 {[%emt 0:00:36]} Bxd1 {[%emt 0:00:48]} 28. Qxd1 {[%emt 0:00:07]} Nf7 {[%emt 0:03:08]} 29. g4 {[%emt 0:00:50]} g6 {[%emt 0:00:16]} 30. Kh1 {[%emt 0:01:57]} Nh6 {[%emt 0:05:06]} 31. Rfg1 {[%emt 0:01:07]} Bd8 {[%emt 0:01:49]} 32. gxf5 {[%emt 0:01:06]} exf5 {[%emt 0:00:07]} 33. Qf3 {[%emt 0:00:44]} Qd7 {[%emt 0:00:30]} 34. Nf1 {[%emt 0:03:23]} Ne6 {[%emt 0:01:32]} 35. Bd2 {[%emt 0:00:58]} Be7 {[%emt 0:00:46]} 36. Ne3 {[%emt 0:01:46]} Rd8 {[%emt 0:00:19]} 37. Bc2 {[%emt 0:01:07]} Bxb4 {[%emt 0:07:19]} 38. cxb4 {[%emt 0:00:05]} Nxd4 {[%emt 0:00:07]} 39. Qf1 {[%emt 0:06:54]} Nxc2 {[%emt 0:02:33]} 40. Nxc2 {[%emt 0:00:01]} d4 {[%emt 0:00:13]} 41. Qf2 {[%emt 0:08:22]} Qd5 {[%emt 0:05:47]} 42. Rd1 {[%emt 0:04:09]} Qe4 {[%emt 0:00:36]} 43. Bc1 {[%emt 0:00:59]} d3 {[%emt 0:03:06]} 44. Qc5+ {[%emt 0:05:33]} Kb8 {[%emt 0:00:07]} 45. Qb6+ {[%emt 0:01:35]} Qb7 {[%emt 0:02:10]} 46. Qxb7+ {[%emt 0:00:03]} Kxb7 {[%emt 0:00:11]} 47. Ne1 {[%emt 0:00:17]} Rd4 {[%emt 0:01:09]} 48. Nf3 {[%emt 0:01:19]} Re4 {[%emt 0:00:33]} 49. Ng5 {[%emt 0:02:03]} Kc6 {[%emt 0:01:16]} 50. Bd2 {[%emt 0:02:59]} Kd5 {[%emt 0:00:23]} 51. Kh2 {[%emt 0:04:27]} Rc8 {[%emt 0:05:39]} 52. Rc1 {[%emt 0:03:03]} Ng8 {[%emt 0:05:44]} 53. Nxh7 {[%emt 0:01:26]} Ne7 {[%emt 0:00:02]} 54. Nf6+ {[%emt 0:00:31]} Ke6 {[%emt 0:00:58]} 55. Kg3 {[%emt 0:00:58]} Rh8 {[%emt 0:03:25]} 56. Re1 {[%emt 0:01:10]} Rd4 {[%emt 0:01:45]} 57. Bc3 {[%emt 0:00:42]} Rdd8 {[%emt 0:00:51]} 58. h4 {[%emt 0:01:18]} Nc6 {[%emt 0:01:07]} 59. Kh3 {[%emt 0:02:56]} Rh6 {[%emt 0:00:29]} 60. Reg1 {[%emt 0:00:14]} Ne7 {[%emt 0:02:43]} 61. h5 {[%emt 0:01:36]} gxh5 {[%emt 0:00:18]} 62. Rg7 {[%emt 0:00:29]} d2 {[%emt 0:00:16]} 63. Bxd2 {[%emt 0:00:37]} Rxd2 {[%emt 0:03:49]} 64. Rxe7+ {[%emt 0:00:05]} Kxe7 {[%emt 0:01:56]} 65. Ng8+ {[%emt 0:00:00]} Ke6 {[%emt 0:00:36]} 66. Nxh6 {[%emt 0:00:01]} Rd4 {[%emt 0:00:09]} 67. Rg6+ {[%emt 0:01:12]} Kd7 {[%emt 0:00:09]} 68. e6+ {[%emt 0:01:14]} Kc6 {[%emt 0:00:42]} 69. Nxf5 {[%emt 0:00:45]} Rd3+ {[%emt 0:00:23]} 70. Kh4 {[%emt 0:00:11]} c3 {[%emt 0:00:03]} 71. e7+ {[%emt 0:00:32]} Kd7 {[%emt 0:00:05]} 72. Rg8 {[%emt 0:00:00]} 1-0

[Event "FIDE Rating Open 2024"]
[Site "Dhaka"]
[Date "2024.01.21"]
[Round "7.6"]
[White "Ahmed, Sheikh Nasir"]
[Black "Noshin, Anjum"]
[Result "1-0"]
[ECO "A25"]
[WhiteElo "2182"]
[BlackElo "1964"]
[Annotator "RC"]
[PlyCount "71"]
[EventDate "2024.01.16"]
[EventType "swiss"]
[EventCountry "BAN"]
[SourceTitle "playchess.com"]
[Source "ChessBase"]
[SourceQuality "1"]
[TimeControl "5400+30"]

1. c4 {[%emt 0:00:02]} e5 {[%emt 0:05:20]} 2. e3 {[%emt 0:01:18]} Nc6 {[%emt 0:02:29]} 3. Nc3 {[%emt 0:00:18]} f5 {[%emt 0:02:24]} 4. d4 {[%emt 0:04:07]} Bb4 {[%emt 0:04:06]} 5. Nge2 {[%emt 0:01:07]} e4 {[%emt 0:05:13]} 6. a3 {[%emt 0:00:52]} Bxc3+ {[%emt 0:01:48]} 7. Nxc3 {[%emt 0:00:03]} Nf6 {[%emt 0:00:17]} 8. b4 {[%emt 0:00:45]} O-O {[%emt 0:04:26]} 9. Be2 {[%emt 0:04:03]} d6 {[%emt 0:03:28]} 10. O-O {[%emt 0:00:27]} a5 {[%emt 0:05:22]} 11. Rb1 {[%emt 0:04:30]} axb4 {[%emt 0:06:22]} 12. axb4 {[%emt 0:00:17]} Bd7 {[%emt 0:04:07]} 13. f4 {[%emt 0:09:31]} Ne7 {[%emt 0:09:47]} 14. d5 {[%emt 0:01:06]} Kh8 {[%emt 0:03:08]} 15. Bb2 {[%emt 0:01:57]} Ng6 {[%emt 0:06:47]} 16. Qd4 {[%emt 0:02:59]} Qe7 {[%emt 0:04:11]} 17. Ra1 {[%emt 0:01:04]} b6 {[%emt 0:07:51]} 18. Rfc1 {[%emt 0:11:47]} Rfb8 {[%emt 0:02:49]} 19. Nd1 {[%emt 0:05:37]} Qf7 {[%emt 0:06:28]} 20. Nf2 {[%emt 0:03:26]} Ne7 {[%emt 0:01:14]} 21. b5 {[%emt 0:25:52]} Qe8 {[%emt 0:08:11]} 22. h3 {[%emt 0:05:03]} Qg6 {[%emt 0:02:34]} 23. Kh2 {[%emt 0:01:21]} h5 {[%emt 0:00:21]} 24. g3 {[%emt 0:00:34]} Kg8 {[%emt 0:00:48]} 25. Qd1 {[%emt 0:01:54]} Kf7 {[%emt 0:02:41]} 26. Rxa8 {[%emt 0:01:03]} Rxa8 {[%emt 0:00:04]} 27. Ra1 {[%emt 0:00:05]} Rh8 {[%emt 0:01:05]} 28. Ra7 {[%emt 0:01:24]} Ne8 {[%emt 0:00:28]} 29. Bd4 {[%emt 0:01:42]} h4 {[%emt 0:00:34]} 30. g4 {[%emt 0:02:00]} fxg4 {[%emt 0:00:31]} 31. Bxg4 {[%emt 0:00:13]} Bxg4 {[%emt 0:00:29]} 32. Qxg4 {[%emt 0:00:32]} Qxg4 {[%emt 0:00:24]} 33. hxg4 {[%emt 0:00:19]} Kg6 {[%emt 0:00:37]} 34. Kh3 {[%emt 0:01:53]} Ng8 {[%emt 0:00:26]} 35. Nxe4 {[%emt 0:00:18]} Ngf6 {[%emt 0:00:08]} 36. f5+ {[%emt 0:01:27]} 1-0

[Event "FIDE Rating Open 2024"]
[Site "Dhaka"]
[Date "2024.01.22"]
[Round "8.1"]
[White "Zia, Tahsin Tajwar"]
[Black "Rahman, Ziaur"]
[Result "1/2-1/2"]
[WhiteElo "2275"]
[BlackElo "2428"]
[Annotator "TA"]
[PlyCount "29"]
[EventDate "2024.01.16"]
[EventType "swiss"]
[EventCountry "BAN"]
[SourceTitle "playchess.com"]
[Source "ChessBase"]
[SourceQuality "1"]
[TimeControl "5400+30"]

{[%evp 12,14,42,35,44]} 1. c4 {[%emt 0:07:59]} g6 {[%emt 0:00:00]} 2. Nc3 {[%emt 0:00:07]} Bg7 {[%emt 0:00:00]} 3. d4 {[%emt 0:00:19]} Nf6 {[%emt 0:00:00]} 4. g3 {[%emt 0:00:30]} O-O {[%emt 0:00:01]} 5. Bg2 {[%emt 0:00:02]} d6 {[%emt 0:00:05]} 6. Nf3 {[%emt 0:00:03]} c6 {[%emt 0:00:03]} 7. e4 {[%emt 0:00:06]} Be6 {[%emt 0:00:09] [#]  7...Bg4 is the modern continuation. E62: King's Indian: Fianchetto: 6...c6 and Panno Variation (6...Nc6) without ...a6.} {Predecessor:} 8. Qe2 $146 c5 9. d5 Bg4 10. h3 Bxf3 11. Bxf3 Nfd7 12. Bg2 Na6 13. O-O Nc7 14. Bd2 a6 15. f4 {0-1 Lazavik,D (2553)-Caruana,F (2782) Bullet Chess Losers blitz 2023 (1.17)} 1/2-1/2

[Event "FIDE Rating Open 2024"]
[Site "Dhaka"]
[Date "2024.01.22"]
[Round "8.2"]
[White "Saiful Islam, Chowdhury"]
[Black "Mohammad Minhaz Uddin"]
[Result "0-1"]
[ECO "C43"]
[WhiteElo "2130"]
[BlackElo "2224"]
[Annotator "TA"]
[PlyCount "46"]
[EventDate "2024.01.16"]
[EventType "swiss"]
[EventCountry "BAN"]
[SourceTitle "playchess.com"]
[Source "ChessBase"]
[SourceQuality "1"]
[TimeControl "5400+30"]

{[%evp 9,46,0,6,-14,-14,-14,-15,-27,-22,-27,42,35,34,-2,1,-71,-54,-93,-62,-329,-314,-322,-327,-972,-956,-952,-946,-1049,-1056,-1114,-1115,-1332,-1312,-29996,-1562,-1722,-1570,-2785,-1716]} 1. e4 {[%emt 0:00:17]} e5 {[%emt 0:00:03]} 2. d4 {[%emt 0:00:16]} Nf6 {[%emt 1:31:27]} 3. dxe5 {[%emt 0:01:45]} Nxe4 {[%emt 0:00:00]} 4. Bd3 {[%emt 0:00:26]} Nc5 {[%emt 0:01:00]} 5. Nf3 {[%emt 0:00:13]} d5 {[%emt 0:00:00]} 6. Nc3 {[%emt 0:04:07][%cal Oc3d5] C43: Petroff Defence: 3 d4.} c6 {[%emt 0:00:00]} 7. h3 {[%emt 0:02:11]} Be7 {[%emt 0:00:00] [#]} 8. a3 $146 {[%emt 0:01:01] The position is equal.} ({Predecessor:} 8. O-O Nxd3 9. Qxd3 O-O 10. Nd4 Nd7 11. Re1 Nc5 12. Qg3 Bh4 13. Qf3 Ne6 14. Nf5 Ng5 15. Bxg5 Bxg5 16. Rad1 Be7 17. Ne4 Bxf5 18. Qxf5 Qc8 19. Ng3 Qxf5 20. Nxf5 {½-½ Brenjo,S (2482)-Pezelj,N (2410) SRB-chT Palic 2014 (4.3)}) 8... a5 {[%emt 0:00:00]} 9. Ne2 {[%emt 0:01:28]} f5 {[%emt 0:00:00]} (9... Nbd7 $11) 10. h4 {[%emt 0:01:15]} O-O {[%emt 0:00:00]} 11. Bf4 {[%emt 0:01:44]} Nba6 {[%emt 0:00:00]} 12. Ng3 {[%emt 0:01:38]} (12. c3 $11) 12... Ne4 {[%emt 0:00:00]} 13. Ng5 {[%emt 0:05:35][%cal Rd3e4] [#] Black must now prevent Bxe4.} h6 {[%emt 0:00:00]} 14. Qe2 $2 {[%emt 0:13:03][%mdl 8192] Loses the game.} hxg5 $19 {[%emt 0:00:00]} 15. hxg5 {[%emt 0:02:39]} Bxg5 {[%emt 0:00:00]} 16. Qh5 $2 {[%emt 0:11:48]} (16. Nh5) 16... Bxf4 {[%emt 0:00:00]} 17. Qh7+ {[%emt 0:02:13]} Kf7 {[%emt 0:00:00]} 18. Nxe4 {[%emt 0:07:15]} fxe4 {[%emt 0:00:00]} 19. Be2 {[%emt 0:04:27]} Qg5 {[%emt 0:00:00]} 20. Bh5+ {[%emt 0:03:21]} Ke7 {[%emt 0:00:00]} 21. Bg6 {[%emt 0:00:39]} Qxe5 {[%emt 0:00:00]} (21... Bd2+ $142 22. Kd1 Bg4+ 23. f3 Rxf3 24. gxf3 Bxf3#) 22. g3 {[%emt 0:00:57]} Bg5 {[%emt 0:00:00]} 23. Rh5 {[%emt 0:00:45]} Be6 {[%emt 0:00:00] Weighted Error Value: White=1.47/Black=0.57} 0-1

[Event "FIDE Rating Open 2024"]
[Site "Dhaka"]
[Date "2024.01.22"]
[Round "8.3"]
[White "Abu Sufian, Shakil"]
[Black "Anata, Choudhury"]
[Result "1-0"]
[ECO "B51"]
[WhiteElo "2199"]
[BlackElo "2196"]
[Annotator "RC"]
[PlyCount "77"]
[EventDate "2024.01.16"]
[EventType "swiss"]
[EventCountry "BAN"]
[SourceTitle "playchess.com"]
[Source "ChessBase"]
[SourceQuality "1"]
[TimeControl "5400+30"]

1. e4 {[%emt 0:00:05]} c5 {[%emt 0:00:40]} 2. Nf3 {[%emt 0:00:13]} d6 {[%emt 0:00:08]} 3. Bb5+ {[%emt 0:00:05]} Nd7 {[%emt 0:00:07]} 4. a4 {[%emt 0:00:17]} Ngf6 {[%emt 0:02:38]} 5. Nc3 {[%emt 0:00:12]} g6 {[%emt 0:07:27]} 6. a5 {[%emt 0:00:30]} a6 {[%emt 0:00:07]} 7. Bc4 {[%emt 0:00:07]} Bh6 {[%emt 0:01:36]} 8. d3 {[%emt 0:06:36]} Bxc1 {[%emt 0:00:23]} 9. Qxc1 {[%emt 0:00:08]} O-O {[%emt 0:00:48]} 10. h4 {[%emt 0:04:56]} e6 {[%emt 0:00:42]} 11. h5 {[%emt 0:01:15]} d5 {[%emt 0:01:34]} 12. exd5 {[%emt 0:06:04]} exd5 {[%emt 0:00:10]} 13. Nxd5 {[%emt 0:00:22]} Nxd5 14. Bxd5 {[%emt 0:00:04]} Nf6 {[%emt 0:04:05]} 15. Bb3 {[%emt 0:02:45]} Re8+ {[%emt 0:04:02]} 16. Kf1 {[%emt 0:00:19]} Be6 {[%emt 0:00:09]} 17. Bxe6 {[%emt 0:09:31]} Rxe6 {[%emt 0:00:09]} 18. hxg6 {[%emt 0:00:11]} fxg6 {[%emt 0:00:13]} 19. Ng5 {[%emt 0:06:00]} Re5 {[%emt 0:21:07]} 20. Nf3 {[%emt 0:05:48]} Rf5 {[%emt 0:18:17]} 21. Qb1 {[%emt 0:07:06]} Qd7 {[%emt 0:03:17]} 22. Qa2+ {[%emt 0:00:06]} Kg7 {[%emt 0:00:08]} 23. Re1 {[%emt 0:00:15]} Re8 {[%emt 0:00:16]} 24. Qc4 {[%emt 0:03:05]} g5 {[%emt 0:12:05]} 25. Qc3 {[%emt 0:03:24]} Rxe1+ {[%emt 0:06:37]} 26. Qxe1 {[%emt 0:08:03]} Nd5 {[%emt 0:01:54]} 27. Ne5 {[%emt 0:04:24]} Qa4 {[%emt 0:07:12]} 28. b3 {[%emt 0:16:35]} Qd4 {[%emt 0:06:10]} 29. Nc4 {[%emt 0:01:02]} Qf6 {[%emt 0:00:10]} 30. Kg1 {[%emt 0:00:41]} g4 {[%emt 0:00:49]} 31. g3 {[%emt 0:01:46]} Nb4 {[%emt 0:03:00]} 32. Qe4 {[%emt 0:04:37]} Nxc2 {[%emt 0:00:00]} 33. Nd6 {[%emt 0:01:09]} Re5 {[%emt 0:00:21]} 34. Qxg4+ {[%emt 0:02:34]} Qg6 {[%emt 0:00:32]} 35. Qd7+ {[%emt 0:00:31]} Kg8 {[%emt 0:00:27]} 36. Qc8+ {[%emt 0:01:11]} Kg7 {[%emt 0:00:23]} 37. Qxb7+ {[%emt 0:00:13]} Kf8 {[%emt 0:00:25]} 38. Rxh7 {[%emt 0:01:17]} Re1+ {[%emt 0:00:24]} 39. Kh2 {[%emt 0:00:11]} 1-0

[Event "FIDE Rating Open 2024"]
[Site "Dhaka"]
[Date "2024.01.22"]
[Round "8.4"]
[White "Subrota, Biswas"]
[Black "Ahmed, Sheikh Nasir"]
[Result "1-0"]
[ECO "B48"]
[WhiteElo "2223"]
[BlackElo "2182"]
[Annotator "RC"]
[PlyCount "91"]
[EventDate "2024.01.16"]
[EventType "swiss"]
[EventCountry "BAN"]
[SourceTitle "playchess.com"]
[Source "ChessBase"]
[SourceQuality "1"]
[TimeControl "5400+30"]

1. e4 {[%emt 0:07:08]} c5 {[%emt 0:00:36]} 2. Nf3 {[%emt 0:01:16]} e6 {[%emt 0:00:08]} 3. d4 {[%emt 0:00:03]} cxd4 {[%emt 0:00:09]} 4. Nxd4 {[%emt 0:00:19]} Nc6 {[%emt 0:00:09]} 5. Nc3 {[%emt 0:00:02]} Qc7 {[%emt 0:00:17]} 6. Be3 {[%emt 0:00:03]} a6 {[%emt 0:00:10]} 7. g4 {[%emt 0:00:03]} h6 {[%emt 0:00:45]} 8. h4 {[%emt 0:00:02]} b5 {[%emt 0:00:19]} 9. Nxc6 {[%emt 0:00:34]} Qxc6 {[%emt 0:00:03]} 10. Qd2 {[%emt 0:02:07]} b4 {[%emt 0:00:21]} 11. Ne2 {[%emt 0:00:04]} Qxe4 {[%emt 0:00:09]} 12. Rg1 {[%emt 0:00:39]} Qc4 {[%emt 0:04:40]} 13. Nf4 {[%emt 0:00:53]} Qc7 {[%emt 0:00:20]} 14. O-O-O {[%emt 0:01:38]} Bb7 {[%emt 0:09:09]} 15. Bb6 {[%emt 0:00:31]} Qc8 {[%emt 0:00:03]} 16. Bd4 {[%emt 0:10:15]} Nf6 {[%emt 0:15:52]} 17. Bxf6 {[%emt 0:06:26]} gxf6 {[%emt 0:00:30]} 18. Nh5 {[%emt 0:00:03]} Be7 {[%emt 0:01:09]} 19. Qf4 {[%emt 0:03:20]} Qd8 {[%emt 0:01:07]} 20. Be2 {[%emt 0:05:00]} Rc8 {[%emt 0:23:25]} 21. Rd2 {[%emt 0:04:09]} Qa5 {[%emt 0:16:31]} 22. Nxf6+ {[%emt 0:02:18]} Bxf6 {[%emt 0:00:15]} 23. Qxf6 {[%emt 0:00:03]} Qxa2 {[%emt 0:00:43]} 24. Qxh8+ {[%emt 0:08:53]} Ke7 {[%emt 0:00:02]} 25. Rxd7+ {[%emt 0:01:05]} Kxd7 {[%emt 0:00:03]} 26. Rd1+ {[%emt 0:02:51]} Ke7 {[%emt 0:01:17]} 27. Qe5 {[%emt 0:02:11]} Bd5 {[%emt 0:03:37]} 28. g5 {[%emt 0:00:07]} hxg5 {[%emt 0:03:34]} 29. hxg5 {[%emt 0:01:57]} Qa4 {[%emt 0:04:51]} 30. Qf6+ {[%emt 0:01:47]} Kd6 {[%emt 0:00:16]} 31. Qf4+ {[%emt 0:02:34]} Ke7 {[%emt 0:00:27]} 32. c4 {[%emt 0:08:59]} Qa1+ {[%emt 0:11:25]} 33. Kc2 {[%emt 0:00:27]} Qa4+ {[%emt 0:00:02]} 34. Kc1 {[%emt 0:04:16]} Qa1+ {[%emt 0:00:08]} 35. Kc2 {[%emt 0:03:40]} Qa4+ {[%emt 0:00:02]} 36. Kd2 {[%emt 0:00:02]} Bxc4 {[%emt 0:00:23]} 37. Qf6+ {[%emt 0:01:15]} Ke8 {[%emt 0:00:26]} 38. g6 {[%emt 0:01:22]} Rd8+ {[%emt 0:01:12]} 39. Ke1 {[%emt 0:12:20]} Rxd1+ {[%emt 0:00:09]} 40. Bxd1 {[%emt 0:00:02]} b3 {[%emt 0:01:41]} 41. gxf7+ {[%emt 0:00:34]} Kf8 {[%emt 0:00:13]} 42. Qd8+ {[%emt 0:00:02]} Kxf7 {[%emt 0:00:15]} 43. Bh5+ {[%emt 0:00:12]} Kg7 {[%emt 0:00:24]} 44. Qg5+ {[%emt 0:00:03]} Kh7 {[%emt 0:02:52]} 45. Qg6+ {[%emt 0:00:26]} Kh8 {[%emt 0:00:11]} 46. Qf6+ {[%emt 0:00:02]} 1-0

[Event "FIDE Rating Open 2024"]
[Site "Dhaka"]
[Date "2024.01.22"]
[Round "8.5"]
[White "Mohammad, Javed"]
[Black "Rahman, Syed Mahfuzur"]
[Result "0-1"]
[ECO "D46"]
[WhiteElo "2088"]
[BlackElo "2087"]
[Annotator "TA"]
[PlyCount "94"]
[EventDate "2024.01.16"]
[EventType "swiss"]
[EventCountry "BAN"]
[SourceTitle "playchess.com"]
[Source "ChessBase"]
[SourceQuality "1"]
[TimeControl "5400+30"]

{[%evp 16,94,31,20,50,18,30,12,12,0,0,0,0,0,16,8,16,4,10,-46,-35,-55,-30,-119,-86,-124,-55,-90,-95,-123,-118,-90,-99,-95,-77,-85,-82,-97,-64,-66,-75,-43,-55,-51,-32,-94,-25,-30,-29,-16,0,0,0,0,0,0,0,-19,0,0,0,0,0,0,0,0,0,0,0,0,0,0,0,0,0,0,0,-1201,-1172,-29986,-29987]} 1. d4 {[%emt 0:00:03]} d5 {[%emt 0:16:23]} 2. Nf3 {[%emt 0:00:16]} Nf6 {[%emt 0:00:18]} 3. c4 {[%emt 0:00:15]} e6 {[%emt 0:00:12]} 4. Nc3 {[%emt 0:00:29]} Nbd7 {[%emt 0:01:57]} 5. e3 {[%emt 0:02:55]} c6 {[%emt 0:00:24]} 6. Qc2 {[%emt 0:01:00]} Bd6 {[%emt 0:00:51]} 7. Bd3 {[%emt 0:00:41]} O-O {[%emt 0:01:29]} 8. O-O {[%emt 0:00:17]} Re8 {[%emt 0:00:57]} 9. Rd1 {[%emt 0:07:34]} Qe7 {[%emt 0:02:27]} 10. e4 {[%emt 0:10:08]} dxe4 {[%emt 0:01:34]} 11. Bxe4 {[%emt 0:04:39]} h6 {[%emt 0:05:31] The position is equal.} 12. h3 {[%emt 0:01:34]} Nxe4 {[%emt 0:02:52]} 13. Nxe4 {[%emt 0:00:12]} Bc7 {[%emt 0:00:20]} 14. Bd2 {[%emt 0:09:36]} c5 {[%emt 0:12:13]} 15. Bc3 {[%emt 0:06:17]} b6 {[%emt 0:05:11]} 16. dxc5 {[%emt 0:17:02]} bxc5 {[%emt 0:06:22]} 17. Qa4 {[%emt 0:03:26]} (17. Qd3 $11) 17... Nb6 $1 $15 {[%emt 0:09:21]} 18. Qc2 {[%emt 0:00:34]} e5 $1 {[%emt 0:07:13][%cal Of7f5]} 19. Ba5 {[%emt 0:06:40]} (19. Re1 $11) 19... Bb7 {[%emt 0:02:21]} 20. Ne1 {[%emt 0:05:25]} Rad8 {[%emt 0:04:43]} (20... f5 $17 21. Ng3 g6) 21. Bxb6 {[%emt 0:03:40]} axb6 {[%emt 0:00:17]} 22. Nc3 {[%emt 0:00:09]} e4 {[%emt 0:02:33] Hoping for ...Qe5.} 23. Rxd8 {[%emt 0:03:11]} Rxd8 {[%emt 0:01:23]} 24. Rd1 {[%emt 0:00:45]} Rxd1 {[%emt 0:04:35]} 25. Nxd1 {[%emt 0:01:31]} f5 {[%emt 0:00:36] Black is more active.} 26. Ne3 {[%emt 0:03:48]} f4 {[%emt 0:03:52]} 27. Nd5 {[%emt 0:00:06]} Bxd5 {[%emt 0:00:43]} 28. cxd5 {[%emt 0:00:02][%mdl 4096] Endgame. KQB-KQN} Qe5 {[%emt 0:01:04]} 29. Qc4 {[%emt 0:05:30] [#] d6+ would now be deadly.} Kf8 {[%emt 0:04:02][%cal Oe5d4]} (29... Qxb2 30. d6+ (30. Qxe4 Qe5 $15) 30... Kh7 31. Qxe4+ (31. dxc7 Qd4 $18) 31... g6 32. dxc7 Qg7 33. c8=Q (33. c8=R Qf7 $18) 33... c4 34. Qeb7 (34. Qxf4 c3 35. Nf3 c2 36. Qxc2 Qa1+ 37. Kh2 Qg7 38. Qcc7 Kh8 39. Qxg7+ Kxg7 40. Ne5 Kh8 41. Qf7 h5 42. Nxg6#) (34. Qcxc4 f3 35. Qxf3 Kh8 36. Qcf7 Kh7 37. Q3f6 Qxf7 38. Qxf7+ Kh8 39. Nd3 h5 40. Ne5 h4 41. Nxg6#) 34... Qxb7 35. Qxb7+) 30. f3 {[%emt 0:00:21]} (30. Nc2 $15) 30... exf3 {[%emt 0:02:37]} ({Much weaker is} 30... Qxb2 $6 31. fxe4 Bd6 32. Kf1 $11) (30... e3 $17 31. Nd3 Qd4 32. Qxd4 cxd4) 31. Nxf3 $11 {[%emt 0:00:11]} Qxb2 {[%emt 0:00:23]} 32. Qa6 {[%emt 0:03:34]} Qa1+ {[%emt 0:00:28]} 33. Kf2 {[%emt 0:01:05] [#] Strongly threatening Qc8+.} Qf6 {[%emt 0:00:35]} 34. Qc8+ {[%emt 0:00:08]} Qd8 {[%emt 0:00:24]} 35. Qf5+ {[%emt 0:00:53]} Qf6 {[%emt 0:01:02]} 36. Qc8+ {[%emt 0:00:20]} Qd8 {[%emt 0:00:24]} (36... Bd8 $5) 37. Qf5+ {[%emt 0:00:06]} Kg8 {[%emt 0:00:22]} 38. Qe6+ {[%emt 0:00:57]} Kh7 {[%emt 0:00:52]} 39. Qf5+ {[%emt 0:01:32]} Kg8 {[%emt 0:00:26]} 40. Qe6+ {[%emt 0:00:04]} Kh7 {[%emt 0:00:36]} 41. Qf5+ {[%emt 0:00:07]} Kh8 {[%emt 0:00:34]} 42. Ne5 {[%emt 0:00:35]} Bxe5 {[%emt 0:00:27]} (42... Qxd5 $2 {is the wrong capture.} 43. Ng6+ Kh7 44. Qxd5 $18) 43. Qxe5 {[%emt 0:00:02]} c4 {[%emt 0:00:32]} 44. d6 {[%emt 0:00:16][%cal Oe5e7] Qe7! is the strong threat.} c3 {[%emt 0:00:11]} 45. Qxf4 {[%emt 0:01:53]} (45. Qe7 $5 Qg8 $8 46. d7 $11) 45... c2 {[%emt 0:00:18]} 46. d7 $2 {[%emt 0:01:34][%mdl 8192] Repels Qc8} Qxd7 $19 {[%emt 0:00:14]} 47. Qc4 {[%emt 0:00:23] Dodges Qb5} Qd2+ {[%emt 0:01:51] Weighted Error Value: White=0.47/Black=0.09 (flawless) .  Loses game:     	White=1     	---        Mistake:       	White=3     	Black=2      Inaccurate:     	White=4     	Black=1      OK:         	White=14    	Black=11     Best:        	White=1     	Black=1      Strong:       	---       	Black=2} 0-1